bitfinex/quotes_BTCUSD_20241111
["timestamp","ask_amount","ask_price","bid_price","bid_amount"]
[1731329169713,0.18334607,82374.0,82366.0,0.29857931]
[1731329169922,0.0807,82369.0,82366.0,0.1726371]
[1731329170122,0.0807,82369.0,82366.0,0.0462281]
[1731329170368,0.0807,82369.0,82366.0,0.02119639]
[1731329170585,0.202106,82369.0,82366.0,0.02119639]
[1731329170785,0.0807,82369.0,82366.0,0.02119639]
[1731329171167,0.0807,82369.0,82366.0,0.14560539]
[1731329171560,0.0807,82369.0,82366.0,0.02119638]
[1731329171831,0.003688,82367.0,82366.0,0.02119638]
[1731329172482,0.173695,82367.0,82366.0,0.01619638]
[1731329172682,0.246295,82367.0,82366.0,0.00055209]
[1731329173037,0.249295,82367.0,82366.0,0.00055209]
[1731329173258,1.749295,82367.0,82366.0,0.00055209]
[1731329173466,1.80076567,82367.0,82366.0,0.00055209]
[1731329173677,1.751295,82367.0,82366.0,0.00055209]
[1731329174233,1.746295,82367.0,82366.0,0.00055209]
[1731329174486,1.80776567,82367.0,82366.0,0.00155209]
[1731329174899,1.81176567,82367.0,82366.0,0.00155209]
[1731329175303,1.80776567,82367.0,82366.0,0.00155209]
[1731329175503,1.757295,82367.0,82366.0,0.00255209]
[1731329175951,1.750295,82367.0,82366.0,0.00155209]
[1731329176161,1.759295,82367.0,82366.0,0.00255209]
[1731329176452,1.755295,82367.0,82366.0,0.00155209]
[1731329176660,1.750295,82367.0,82366.0,0.00155209]
[1731329177112,1.69338318,82367.0,82366.0,0.00755209]
[1731329177318,1.638888,82367.0,82366.0,0.00755209]
[1731329177513,1.760295,82367.0,82366.0,0.00755209]
[1731329177717,1.67521839,82367.0,82366.0,0.00755209]
[1731329177995,1.67521752,82367.0,82366.0,0.14460297]
[1731329178210,1.638888,82367.0,82366.0,0.14460297]
[1731329178445,0.014688,82367.0,82366.0,0.19034597]
[1731329178863,0.014688,82367.0,82366.0,0.21536824]
[1731329179147,0.014688,82367.0,82366.0,0.3931823]
[1731329179583,0.010688,82367.0,82366.0,0.34531045]
[1731329179801,0.000688,82367.0,82366.0,0.34731045]
[1731329180005,0.000688,82367.0,82366.0,0.35031044]
[1731329180366,0.000688,82367.0,82366.0,0.47942722]
[1731329180589,0.0176065,82380.0,82379.0,0.13139]
[1731329180794,0.0176065,82380.0,82379.0,0.47003657]
[1731329181263,0.0176065,82380.0,82379.0,0.28052616]
[1731329181419,0.0176065,82380.0,82379.0,0.50246393]
[1731329181640,0.0176065,82380.0,82379.0,0.50003668]
[1731329181798,0.0176065,82380.0,82379.0,0.30552627]
[1731329182019,0.0216065,82380.0,82379.0,0.41016346]
[1731329182237,0.0246065,82380.0,82379.0,0.41016346]
[1731329182450,0.0246065,82380.0,82379.0,0.41316346]
[1731329182658,0.0246065,82380.0,82379.0,0.41316345]
[1731329182861,0.0176065,82380.0,82379.0,0.41216345]
[1731329183225,0.0176065,82380.0,82379.0,0.41416345]
[1731329183598,0.0176065,82380.0,82379.0,0.43716345]
[1731329183804,0.0176065,82380.0,82379.0,0.53716345]
[1731329183978,0.0176065,82380.0,82379.0,0.53707734]
[1731329185229,0.0176065,82380.0,82379.0,0.43757141]
[1731329186910,0.0176065,82380.0,82379.0,0.4375714]
[1731329187246,0.0176065,82380.0,82379.0,0.43753172]
[1731329188469,0.0176065,82380.0,82379.0,0.3970155]
[1731329188676,0.0176065,82380.0,82379.0,0.43751207]
[1731329188876,0.0184505,82380.0,82379.0,0.51873331]
[1731329189078,0.0184505,82380.0,82379.0,0.5187333]
[1731329189449,0.0184505,82380.0,82379.0,0.55922704]
[1731329190122,0.0184505,82380.0,82379.0,0.54365285]
[1731329190311,0.0184505,82380.0,82379.0,0.55922336]
[1731329190768,0.0184505,82380.0,82379.0,0.55922335]
[1731329192051,0.0184505,82380.0,82379.0,0.51873329]
[1731329192278,0.0184505,82380.0,82379.0,0.55921114]
[1731329193581,0.0184505,82380.0,82379.0,0.55920435]
[1731329193790,0.0184505,82380.0,82379.0,0.43748653]
[1731329195068,0.17112147,82390.0,82389.0,0.138375]
[1731329195273,0.17112147,82390.0,82389.0,0.2648692]
[1731329195497,1.5,82399.0,82396.0,0.005]
[1731329195657,1.5,82399.0,82396.0,0.00555199]
[1731329196248,1.621361,82399.0,82396.0,0.00555199]
[1731329197275,1.5,82399.0,82396.0,0.16488249]
[1731329197476,0.121362,82398.0,82396.0,0.04351849]
[1731329197752,0.121363,82397.0,82396.0,0.04351849]
[1731329197953,0.121363,82397.0,82396.0,0.00555199]
[1731329198161,0.170063,82397.0,82396.0,0.00655199]
[1731329198285,0.41355803,82397.0,82396.0,0.00555199]
[1731329198678,0.246763,82397.0,82396.0,0.00755199]
[1731329198878,0.246763,82397.0,82396.0,0.00655199]
[1731329199111,0.246763,82397.0,82396.0,0.00555199]
[1731329199533,0.1314,82397.0,82396.0,0.00655199]
[1731329200389,0.1324,82397.0,82396.0,0.00755199]
[1731329201389,1.6324,82397.0,82396.0,0.00755199]
[1731329202196,1.753763,82397.0,82396.0,0.00755199]
[1731329203039,1.87970521,82397.0,82396.0,0.00255199]
[1731329203460,2.04650024,82397.0,82396.0,0.00255199]
[1731329203869,0.12139,82379.0,82378.0,0.005]
[1731329204074,0.121393,82377.0,82376.0,0.18334607]
[1731329204287,0.121406,82368.0,82367.0,0.18334607]
[1731329204491,0.121406,82368.0,82363.0,0.005]
[1731329204492,1.66679503,82368.0,82363.0,0.005]
[1731329204699,1.66679503,82368.0,82358.0,0.001688]
[1731329204700,0.0829,82367.0,82360.0,0.005]
[1731329204922,0.121419,82359.0,82358.0,0.006688]
[1731329205142,0.169419,82359.0,82358.0,0.001688]
[1731329205337,0.048,82359.0,82358.0,0.006688]
[1731329205560,0.0829,82367.0,82366.0,0.005]
[1731329205760,0.38765307,82367.0,82366.0,0.005]
[1731329205968,0.204307,82367.0,82366.0,0.005]
[1731329206822,0.232307,82367.0,82366.0,0.005]
[1731329207235,0.218307,82367.0,82366.0,0.005]
[1731329207444,0.224307,82367.0,82366.0,0.005]
[1731329208082,0.210307,82367.0,82366.0,0.005]
[1731329208307,0.217307,82367.0,82366.0,0.006]
[1731329209135,0.0959,82367.0,82366.0,0.006]
[1731329209901,0.217307,82367.0,82366.0,0.006]
[1731329211215,1.717307,82367.0,82366.0,0.006]
[1731329211425,1.5959,82367.0,82366.0,0.006]
[1731329213411,1.717307,82367.0,82366.0,0.006]
[1731329214153,1.5959,82367.0,82366.0,0.007688]
[1731329214562,0.013,82367.0,82366.0,0.129097]
[1731329214809,0.013,82367.0,82366.0,0.007688]
[1731329215232,1.513,82367.0,82366.0,0.007688]
[1731329215602,1.634407,82367.0,82366.0,0.007688]
[1731329216448,1.513,82367.0,82366.0,0.007688]
[1731329217072,0.16679503,82371.0,82366.0,0.007688]
[1731329217218,0.2428,82372.0,82366.0,0.007688]
[1731329217643,0.121405,82369.0,82366.0,0.007688]
[1731329217983,1.5,82367.0,82366.0,0.006688]
[1731329218387,1.5,82367.0,82366.0,0.007688]
[1731329218784,1.621407,82367.0,82366.0,0.006688]
[1731329219211,1.754607,82367.0,82366.0,0.002688]
[1731329219436,2.00649142,82367.0,82366.0,0.003688]
[1731329219661,2.00649142,82367.0,82358.0,0.001688]
[1731329219662,0.121419,82359.0,82358.0,0.001688]
[1731329219871,0.121419,82359.0,82347.0,0.18334607]
[1731329219872,0.36643003,82348.0,82347.0,0.18334607]
[1731329220024,0.54037224,82348.0,82347.0,0.18334607]
[1731329220247,0.121446,82341.0,82339.0,0.000845]
[1731329220460,0.28824103,82341.0,82339.0,0.000845]
[1731329221008,1.78824103,82341.0,82339.0,0.000845]
[1731329221681,1.79424103,82341.0,82340.0,0.00269]
[1731329221902,1.627446,82341.0,82340.0,0.00269]
[1731329222125,1.621446,82341.0,82340.0,0.00169]
[1731329222448,1.627446,82341.0,82340.0,0.00269]
[1731329222873,1.641446,82341.0,82340.0,0.00369]
[1731329223072,1.627446,82341.0,82340.0,0.00269]
[1731329223788,1.506,82341.0,82340.0,0.00269]
[1731329223988,1.633446,82341.0,82340.0,0.00369]
[1731329224273,1.627446,82341.0,82340.0,0.00269]
[1731329224476,1.633446,82341.0,82340.0,0.00269]
[1731329227796,1.83478821,82341.0,82340.0,0.00269]
[1731329227997,1.88278821,82341.0,82340.0,0.00269]
[1731329228237,1.88278821,82341.0,82330.0,0.000845]
[1731329228238,0.28825503,82331.0,82330.0,0.000845]
[1731329228472,0.54389724,82331.0,82330.0,0.000845]
[1731329228679,0.200284,82315.0,82311.0,0.18334607]
[1731329228879,1.91547903,82315.0,82311.0,0.18334607]
[1731329229375,1.91547903,82315.0,82307.0,0.005]
[1731329229600,1.79399503,82315.0,82307.0,0.005]
[1731329229808,1.91547903,82315.0,82307.0,0.005]
[1731329230012,1.79399503,82315.0,82307.0,0.005]
[1731329230388,1.92347903,82315.0,82314.0,0.002688]
[1731329230873,1.93747903,82315.0,82314.0,0.003688]
[1731329231244,2.0287795,82315.0,82314.0,0.002688]
[1731329231484,1.91547903,82315.0,82314.0,0.001688]
[1731329231659,1.92047903,82315.0,82314.0,0.001688]
[1731329231863,1.92447903,82315.0,82314.0,0.001688]
[1731329232204,2.04142124,82315.0,82314.0,0.001688]
[1731329232400,2.05742124,82315.0,82314.0,0.002688]
[1731329232615,1.93147903,82315.0,82314.0,0.002688]
[1731329233286,1.764684,82315.0,82314.0,0.002688]
[1731329233486,1.93147903,82315.0,82314.0,0.002688]
[1731329233663,1.80999503,82315.0,82314.0,0.002688]
[1731329233870,1.93147903,82315.0,82314.0,0.002688]
[1731329234070,1.80999503,82315.0,82314.0,0.002688]
[1731329234329,1.93147903,82315.0,82314.0,0.002688]
[1731329235629,0.1,82314.0,82296.0,0.005]
[1731329235845,0.1215,82304.0,82303.0,0.18334607]
[1731329236057,0.1215,82304.0,82296.0,0.005]
[1731329236058,0.121509,82298.0,82297.0,0.00277381]
[1731329236264,0.28830603,82297.0,82294.0,0.005]
[1731329236478,0.16679503,82297.0,82295.0,0.005]
[1731329236684,0.16679503,82297.0,82294.0,0.005]
[1731329236685,0.28830703,82297.0,82294.0,0.01]
[1731329236895,0.16679503,82297.0,82295.0,0.005]
[1731329237106,1.5,82296.0,82295.0,0.005]
[1731329237332,0.18334607,82314.0,82305.0,0.005]
[1731329237543,0.121495,82308.0,82305.0,0.005]
[1731329237753,0.16679503,82311.0,82305.0,0.005]
[1731329237979,0.16679503,82311.0,82292.0,0.243035]
[1731329237980,0.242986,82309.0,82292.0,0.005]
[1731329238221,0.16679503,82293.0,82289.0,0.005]
[1731329238437,0.121522,82289.0,82288.0,0.005]
[1731329238662,1.5,82291.0,82288.0,0.005]
[1731329238869,0.121521,82290.0,82288.0,0.005]
[1731329239128,1.5,82291.0,82288.0,0.005]
[1731329239783,0.001,82289.0,82288.0,0.005]
[1731329239993,0.001,82289.0,82285.0,0.005]
[1731329240230,0.121527,82286.0,82285.0,0.005]
[1731329240467,0.121527,82286.0,82283.0,0.000844]
[1731329240706,0.12153,82284.0,82283.0,0.000844]
[1731329242009,0.34665002,82284.0,82283.0,0.000844]
[1731329242219,1.82947221,82284.0,82283.0,0.000844]
[1731329243039,1.503,82284.0,82283.0,0.000844]
[1731329243269,1.62453,82284.0,82283.0,0.000844]
[1731329243476,1.507,82284.0,82278.0,0.005]
[1731329243885,1.503,82284.0,82278.0,0.005]
[1731329244112,1.506,82284.0,82278.0,0.005]
[1731329244340,0.16679503,82280.0,82275.0,0.001374]
[1731329244597,0.51613703,82276.0,82275.0,0.001374]
[1731329244808,0.51613703,82276.0,82272.0,0.001374]
[1731329244809,0.38834103,82273.0,82272.0,0.001374]
[1731329245003,0.5062199,82273.0,82272.0,0.001374]
[1731329245228,2.0062199,82273.0,82272.0,0.001374]
[1731329246115,2.0202199,82273.0,82272.0,0.001374]
[1731329246318,2.02443264,82273.0,82272.0,0.001374]
[1731329247471,2.03843264,82273.0,82272.0,0.001374]
[1731329251131,2.07060929,82273.0,82272.0,0.001374]
[1731329251494,2.03843264,82273.0,82272.0,0.001374]
[1731329251689,2.03843264,82273.0,82272.0,0.012569]
[1731329254003,2.03843264,82273.0,82272.0,0.01292089]
[1731329254212,2.03823792,82273.0,82272.0,0.01292089]
[1731329254430,1.528,82273.0,82272.0,0.01292089]
[1731329254631,1.528,82273.0,82272.0,0.02841414]
[1731329254910,0.028,82273.0,82272.0,0.17087036]
[1731329255055,0.028,82273.0,82272.0,0.20265609]
[1731329255233,0.028,82273.0,82272.0,0.20538837]
[1731329255431,0.028,82273.0,82272.0,0.18912747]
[1731329255695,0.014,82273.0,82272.0,0.18912747]
[1731329255904,0.014,82273.0,82272.0,0.18712747]
[1731329256118,0.019,82273.0,82272.0,0.18712747]
[1731329256355,0.019,82273.0,82272.0,0.18912747]
[1731329256564,0.014,82273.0,82272.0,0.18912747]
[1731329256764,1.5,82282.0,82280.0,0.002]
[1731329256970,1.5,82282.0,82281.0,0.04027819]
[1731329257780,1.5,82282.0,82281.0,0.04527819]
[1731329258151,1.5,82282.0,82281.0,0.16681219]
[1731329258355,1.508,82282.0,82281.0,0.04727819]
[1731329258591,1.508,82282.0,82281.0,0.17154312]
[1731329258808,1.515,82282.0,82281.0,0.16881219]
[1731329259056,0.015,82282.0,82281.0,0.17654312]
[1731329259239,0.008,82282.0,82281.0,0.41248533]
[1731329259443,0.18334607,82305.0,82304.0,0.01]
[1731329259658,0.18334607,82305.0,82304.0,0.05027819]
[1731329259882,0.18334607,82305.0,82304.0,0.1745085]
[1731329260100,1.5,82305.0,82304.0,0.1745085]
[1731329260310,1.5,82305.0,82304.0,0.0530085]
[1731329260525,0.18334607,82314.0,82304.0,0.05027819]
[1731329260526,0.3501411,82314.0,82304.0,0.05027819]
[1731329260753,0.3501411,82314.0,82305.0,0.04027819]
[1731329260960,0.16679503,82308.0,82306.0,0.04027819]
[1731329261175,0.29273724,82308.0,82307.0,0.04027819]
[1731329261595,0.29273724,82308.0,82307.0,0.01551532]
[1731329262868,0.29973724,82308.0,82307.0,0.01551532]
[1731329263544,0.30473724,82308.0,82307.0,0.01551532]
[1731329263968,0.30642724,82308.0,82307.0,0.01551532]
[1731329264173,1.80642724,82308.0,82307.0,0.01551532]
[1731329265626,1.93222724,82308.0,82307.0,0.01551532]
[1731329265864,1.93222724,82308.0,82307.0,0.01551846]
[1731329266280,1.93222724,82308.0,82301.0,0.005]
[1731329266505,1.93222724,82308.0,82302.0,0.01551881]
[1731329266712,1.93222724,82308.0,82303.0,0.01551881]
[1731329266914,1.93222724,82308.0,82304.0,0.01551881]
[1731329267118,1.93222724,82308.0,82305.0,0.01551881]
[1731329267331,1.92722724,82308.0,82306.0,0.01551881]
[1731329267542,1.71223221,82308.0,82301.0,0.005]
[1731329267758,1.71223221,82308.0,82302.0,0.01551891]
[1731329267759,1.70623221,82308.0,82302.0,0.01551891]
[1731329267972,1.70623221,82308.0,82303.0,0.01551891]
[1731329268193,1.70623221,82308.0,82307.0,0.133496]
[1731329268194,0.00469,82308.0,82307.0,0.133496]
[1731329268416,0.00869,82308.0,82307.0,0.66466299]
[1731329268632,0.00369,82308.0,82307.0,0.70258385]
[1731329268838,0.00169,82308.0,82307.0,0.70537159]
[1731329269050,0.00169,82308.0,82307.0,0.82207955]
[1731329269256,0.00469,82308.0,82307.0,0.82207955]
[1731329269470,0.00469,82308.0,82307.0,0.40263435]
[1731329269717,0.00469,82308.0,82307.0,0.39984661]
[1731329269932,0.00469,82308.0,82307.0,0.41103661]
[1731329269933,0.00169,82308.0,82307.0,0.41103661]
[1731329270164,0.00269,82308.0,82307.0,0.41103661]
[1731329270377,0.00169,82308.0,82307.0,0.41103661]
[1731329270592,0.00169,82308.0,82307.0,0.49931107]
[1731329270833,0.00269,82308.0,82307.0,0.40703661]
[1731329271758,0.00369,82308.0,82307.0,0.28203661]
[1731329272199,0.00269,82308.0,82307.0,0.28103661]
[1731329272417,0.00369,82308.0,82307.0,0.28203661]
[1731329273717,0.00369,82308.0,82307.0,0.28003661]
[1731329273940,0.00369,82308.0,82307.0,0.28203661]
[1731329274799,0.00369,82308.0,82307.0,0.25220491]
[1731329275012,0.00369,82308.0,82307.0,0.26520491]
[1731329275651,0.00269,82308.0,82307.0,0.14262024]
[1731329275871,0.00269,82308.0,82307.0,0.14362024]
[1731329276131,0.00369,82308.0,82307.0,0.03862024]
[1731329276338,0.00269,82308.0,82307.0,0.13762024]
[1731329276561,0.00269,82308.0,82307.0,0.25911624]
[1731329276763,0.00369,82308.0,82307.0,0.26411624]
[1731329276967,0.00369,82308.0,82307.0,0.25911624]
[1731329277404,0.00369,82308.0,82307.0,0.26111624]
[1731329277837,0.00469,82308.0,82307.0,0.26611624]
[1731329278058,0.00369,82308.0,82307.0,0.26511624]
[1731329278264,0.00369,82308.0,82307.0,0.04162024]
[1731329278473,0.00369,82308.0,82307.0,0.03662024]
[1731329278925,0.00369,82308.0,82307.0,0.01719]
[1731329278926,0.203984,82308.0,82307.0,0.01719]
[1731329279346,1.702984,82308.0,82307.0,0.01619]
[1731329279550,1.700984,82308.0,82307.0,0.01119]
[1731329279755,1.701984,82308.0,82307.0,0.01219]
[1731329279971,1.702984,82308.0,82307.0,0.02219]
[1731329280188,1.701984,82308.0,82307.0,0.01219]
[1731329280398,1.58049,82308.0,82307.0,0.01219]
[1731329280608,1.701984,82308.0,82307.0,0.01219]
[1731329280806,1.701984,82308.0,82307.0,0.01419]
[1731329281152,1.700984,82308.0,82307.0,0.01319]
[1731329281377,1.700984,82308.0,82307.0,0.01119]
[1731329282291,1.700984,82308.0,82307.0,0.01219]
[1731329282702,1.700984,82308.0,82307.0,0.01519]
[1731329283120,1.57949,82308.0,82307.0,0.01519]
[1731329283525,1.50169,82308.0,82307.0,0.01519]
[1731329283734,1.50169,82308.0,82307.0,0.01719]
[1731329284049,1.87348166,82308.0,82307.0,0.01519]
[1731329284256,1.95378166,82308.0,82307.0,0.01519]
[1731329284744,1.703484,82308.0,82307.0,0.01519]
[1731329284962,0.08199,82308.0,82307.0,0.01519]
[1731329285797,0.203484,82308.0,82307.0,0.01519]
[1731329287483,0.203484,82308.0,82307.0,0.01119]
[1731329287669,0.206484,82308.0,82307.0,0.01119]
[1731329287870,0.213484,82308.0,82307.0,0.01119]
[1731329288234,0.210484,82308.0,82307.0,0.01119]
[1731329288443,0.34442621,82308.0,82307.0,0.01119]
[1731329288905,1.84442621,82308.0,82307.0,0.01119]
[1731329290422,1.72293221,82308.0,82287.0,0.005]
[1731329290620,1.72293221,82308.0,82289.0,0.005]
[1731329290621,0.25029766,82296.0,82289.0,0.005]
[1731329290826,0.121518,82293.0,82289.0,0.005]
[1731329291026,0.243031,82294.0,82289.0,0.005]
[1731329291027,1.5,82292.0,82289.0,0.005]
[1731329291768,1.5,82292.0,82287.0,0.006]
[1731329291976,1.5,82292.0,82289.0,0.009]
[1731329292221,1.621518,82292.0,82289.0,0.009]
[1731329292381,1.5,82292.0,82289.0,0.009]
[1731329292970,1.621518,82292.0,82289.0,0.009]
[1731329293166,0.12152,82291.0,82289.0,0.005]
[1731329293369,0.12152,82291.0,82289.0,0.006]
[1731329293637,0.12152,82291.0,82289.0,0.01]
[1731329294053,1.502,82292.0,82289.0,0.01]
[1731329294249,0.121519,82291.0,82289.0,0.009]
[1731329294439,0.198019,82291.0,82289.0,0.006]
[1731329294749,0.199019,82291.0,82289.0,0.01]
[1731329294955,0.30486707,82290.0,82289.0,0.004]
[1731329295191,0.121531,82283.0,82282.0,0.000845]
[1731329295375,0.0498,82289.0,82282.0,0.000845]
[1731329295612,0.121531,82283.0,82282.0,0.000845]
[1731329296938,0.121531,82283.0,82282.0,0.004845]
[1731329297349,0.24747321,82283.0,82282.0,0.000845]
[1731329297544,0.24947321,82283.0,82282.0,0.000845]
[1731329297756,0.34471519,82283.0,82282.0,0.000845]
[1731329298020,0.42741519,82283.0,82282.0,0.000845]
[1731329298210,0.33217321,82283.0,82282.0,0.000845]
[1731329298645,0.33624395,82283.0,82282.0,0.000845]
[1731329299210,1.83624395,82283.0,82282.0,0.000845]
[1731329300396,1.88284395,82283.0,82282.0,0.000845]
[1731329300644,1.93704905,82283.0,82282.0,0.000845]
[1731329300868,1.89184395,82283.0,82282.0,0.000845]
[1731329301100,1.88784395,82283.0,82282.0,0.000845]
[1731329301344,2.02393688,82283.0,82282.0,0.000845]
[1731329301640,2.15184395,82283.0,82282.0,0.000845]
[1731329301874,1.90184395,82283.0,82282.0,0.000845]
[1731329302688,1.88784395,82283.0,82282.0,0.000845]
[1731329303054,1.88284395,82283.0,82282.0,0.000845]
[1731329303183,1.91084395,82283.0,82282.0,0.000845]
[1731329305089,1.91084395,82283.0,82282.0,0.00112966]
[1731329307152,1.74071295,82283.0,82282.0,0.00112966]
[1731329307596,1.86224395,82283.0,82282.0,0.00112966]
[1731329311798,1.74071295,82283.0,82282.0,0.00112966]
[1731329312400,1.528,82283.0,82282.0,0.12766266]
[1731329312602,1.528,82283.0,82282.0,0.00612966]
[1731329313400,1.514,82283.0,82282.0,0.00612966]
[1731329313601,1.5,82283.0,82282.0,0.00112966]
[1731329313809,1.506,82283.0,82282.0,0.00112966]
[1731329314009,1.511,82283.0,82282.0,0.00612966]
[1731329314640,1.511,82283.0,82282.0,0.13466266]
[1731329314850,1.511,82283.0,82282.0,0.20710313]
[1731329315092,1.511,82283.0,82282.0,0.22262811]
[1731329315247,1.511,82283.0,82282.0,0.25018764]
[1731329315449,0.011,82283.0,82282.0,0.25018764]
[1731329315660,0.011,82283.0,82282.0,0.27503179]
[1731329316061,0.011,82283.0,82282.0,0.27003179]
[1731329316287,0.37557321,82283.0,82282.0,0.00112966]
[1731329316463,0.37057321,82283.0,82282.0,0.00112966]
[1731329316683,0.20154221,82283.0,82282.0,0.00212966]
[1731329316884,0.0792,82290.0,82282.0,0.00412966]
[1731329317197,0.18334607,82287.0,82282.0,0.00712966]
[1731329317402,1.5,82283.0,82282.0,0.00912966]
[1731329317808,1.5,82283.0,82282.0,0.12966266]
[1731329318175,1.5,82283.0,82282.0,0.13466266]
[1731329318394,1.5,82283.0,82282.0,0.15019965]
[1731329318954,1.5,82283.0,82282.0,0.15219965]
[1731329319157,1.5,82283.0,82282.0,0.02166665]
[1731329319357,1.5,82283.0,82282.0,0.14419965]
[1731329319759,1.5,82283.0,82282.0,0.14619965]
[1731329320164,1.5,82283.0,82282.0,0.14819965]
[1731329320361,1.5,82283.0,82282.0,0.14819969]
[1731329321309,1.5,82283.0,82282.0,0.15319969]
[1731329321575,1.5,82283.0,82282.0,0.15320743]
[1731329321797,1.5,82283.0,82282.0,0.21471277]
[1731329322006,1.5,82283.0,82282.0,0.38488455]
[1731329322209,1.5,82283.0,82282.0,0.40377922]
[1731329322792,0.18334607,82296.0,82282.0,0.28224622]
[1731329322999,0.18334607,82296.0,82295.0,0.123514]
[1731329323209,0.18334607,82296.0,82295.0,0.14934344]
[1731329323356,1.5,82296.0,82295.0,0.21045398]
[1731329323563,0.00169,82308.0,82306.0,0.233497]
[1731329323762,0.00169,82308.0,82306.0,0.24932645]
[1731329323964,0.00169,82308.0,82306.0,0.40011151]
[1731329324164,0.00169,82308.0,82306.0,0.2741693]
[1731329325073,0.00169,82308.0,82306.0,0.1741693]
[1731329325397,0.123184,82308.0,82306.0,0.02782945]
[1731329325571,0.00169,82308.0,82306.0,0.00528472]
[1731329325770,0.00169,82308.0,82306.0,0.00028472]
[1731329325771,0.27376391,82307.0,82306.0,0.00028472]
[1731329326198,0.24912821,82307.0,82306.0,0.00528472]
[1731329326353,1.87777217,82307.0,82306.0,0.00528472]
[1731329326558,1.87877217,82307.0,82306.0,0.00728472]
[1731329326819,1.87777217,82307.0,82306.0,0.00028472]
[1731329326994,1.88077217,82307.0,82306.0,0.00028472]
[1731329327218,1.9180123,82307.0,82306.0,0.00028472]
[1731329327447,1.93510824,82307.0,82306.0,0.00028472]
[1731329327582,2.51350956,82307.0,82306.0,0.00028472]
[1731329327794,0.243039,82291.0,82285.0,0.18334607]
[1731329327992,0.121533,82282.0,82276.0,0.121541]
[1731329328195,0.121533,82282.0,82274.0,0.18247579]
[1731329328196,0.121515,82294.0,82282.0,0.121533]
[1731329328401,0.18334607,82293.0,82288.0,0.126523]
[1731329328613,0.12594221,82292.0,82281.0,0.005]
[1731329328844,1.621533,82282.0,82281.0,0.005]
[1731329329086,1.621533,82282.0,82277.0,0.01551779]
[1731329329314,1.621533,82282.0,82276.0,0.126541]
[1731329329527,0.121537,82280.0,82275.0,0.005]
[1731329329755,0.121538,82279.0,82275.0,0.005]
[1731329329986,1.5,82282.0,82275.0,0.005]
[1731329330193,0.121537,82279.0,82275.0,0.005]
[1731329330365,0.121536,82280.0,82275.0,0.005]
[1731329330600,0.12154,82277.0,82276.0,0.004]
[1731329330809,0.121542,82276.0,82274.0,0.005]
[1731329330993,0.121542,82276.0,82273.0,0.005]
[1731329331183,0.121546,82273.0,82272.0,0.001374]
[1731329331396,0.243072,82280.0,82272.0,0.006374]
[1731329331616,0.121539,82278.0,82273.0,0.121545]
[1731329331791,0.121542,82276.0,82272.0,0.006374]
[1731329331985,0.121539,82278.0,82273.0,0.121546]
[1731329332188,0.121543,82275.0,82272.0,0.001374]
[1731329332417,0.121543,82275.0,82274.0,0.005]
[1731329332620,0.121539,82278.0,82274.0,0.005]
[1731329332829,0.243072,82280.0,82274.0,0.005]
[1731329332975,0.26094607,82281.0,82272.0,0.001374]
[1731329332976,0.243075,82279.0,82272.0,0.001374]
[1731329333179,0.243081,82277.0,82273.0,0.005]
[1731329333398,0.121545,82274.0,82273.0,0.005]
[1731329333614,0.121545,82274.0,82272.0,0.001374]
[1731329334033,0.243046,82289.0,82280.0,0.121535]
[1731329334236,0.121529,82285.0,82281.0,0.121534]
[1731329334453,0.121534,82281.0,82275.0,0.005]
[1731329334656,0.12154,82278.0,82275.0,0.005]
[1731329334864,0.121537,82280.0,82275.0,0.126543]
[1731329335230,0.243046,82289.0,82281.0,0.005]
[1731329335431,0.121529,82285.0,82281.0,0.005]
[1731329335580,0.0776,82292.0,82281.0,0.126534]
[1731329335785,1.514,82282.0,82281.0,0.1853723]
[1731329336203,0.18334607,82293.0,82282.0,0.230913]
[1731329336397,0.18334607,82293.0,82292.0,0.121518]
[1731329336607,0.18334607,82296.0,82292.0,0.0357411]
[1731329336780,0.18334607,82306.0,82291.0,0.005]
[1731329337010,0.18334607,82306.0,82294.0,0.121514]
[1731329337011,0.121507,82300.0,82294.0,0.121514]
[1731329337222,1.5,82299.0,82294.0,0.121514]
[1731329337635,1.5,82299.0,82295.0,0.121513]
[1731329337777,1.5,82299.0,82294.0,0.005]
[1731329337982,1.5,82299.0,82296.0,0.121512]
[1731329338228,1.5,82299.0,82294.0,0.005]
[1731329338229,1.5,82299.0,82294.0,0.127514]
[1731329338430,1.621509,82299.0,82294.0,0.126514]
[1731329338845,1.627509,82299.0,82295.0,0.001]
[1731329339074,1.506,82299.0,82295.0,0.001]
[1731329339303,0.121516,82294.0,82291.0,0.001]
[1731329339484,1.5,82299.0,82291.0,0.005]
[1731329339686,0.121518,82293.0,82288.0,0.121524]
[1731329339838,0.243029,82295.0,82286.0,0.005]
[1731329340038,0.364543,82295.0,82294.0,0.001]
[1731329340660,0.121514,82295.0,82294.0,0.001]
[1731329340872,1.505,82299.0,82294.0,0.001]
[1731329341077,1.505,82299.0,82295.0,0.121513]
[1731329341294,0.121512,82297.0,82291.0,0.121518]
[1731329341508,1.503,82299.0,82293.0,0.005]
[1731329341713,1.624508,82299.0,82294.0,0.121514]
[1731329341916,1.624508,82299.0,82293.0,0.005]
[1731329341917,1.5,82299.0,82295.0,0.121513]
[1731329342119,1.506,82299.0,82295.0,0.122513]
[1731329342342,1.506,82299.0,82294.0,0.001]
[1731329342547,1.506,82299.0,82295.0,0.121513]
[1731329342548,1.621508,82299.0,82295.0,0.121513]
[1731329342751,1.621508,82299.0,82294.0,0.001]
[1731329342752,1.505,82299.0,82294.0,0.001]
[1731329342958,0.36896121,82298.0,82295.0,0.001]
[1731329343159,0.203712,82296.0,82295.0,0.001]
[1731329343375,0.37505421,82296.0,82295.0,0.001]
[1731329343587,0.44391622,82296.0,82295.0,0.001]
[1731329343787,1.87505421,82296.0,82295.0,0.001]